[Event "*** Titled Tuesday Blitz"]
[Site "Chess.com"]
[Date "2019.06.04"]
[Round "5"]
[White "PowerThinking2650"]
[Black "Gattass"]
[Result "1/2-1/2"]
[WhiteElo "2356"]
[BlackElo "2347"]
[TimeControl "180+2"]
[EndTime "14:07:38 PDT"]
[Termination "Game drawn by repetition"]

1. e4 {[%clk 0:03:01.9]} 1... c5 {[%clk 0:03:00.7]} 2. Nf3 {[%clk 0:03:02.5]}
2... d6 {[%clk 0:03:01.6]} 3. d4 {[%clk 0:03:04]} 3... cxd4 {[%clk 0:03:03.5]}
4. Nxd4 {[%clk 0:03:05.4]} 4... Nf6 {[%clk 0:03:04.9]} 5. Nc3 {[%clk 0:03:06.7]}
5... a6 {[%clk 0:03:06.4]} 6. Be3 {[%clk 0:03:07.1]} 6... e6 {[%clk 0:03:04.2]}
7. f3 {[%clk 0:03:07.7]} 7... b5 {[%clk 0:03:04.3]} 8. Qd2 {[%clk 0:03:09.2]}
8... Nbd7 {[%clk 0:03:03.3]} 9. g4 {[%clk 0:03:08.7]} 9... Nb6 {[%clk
0:03:03.2]} 10. g5 {[%clk 0:03:07.3]} 10... Nfd7 {[%clk 0:03:03.8]} 11. a3
{[%clk 0:03:07]} 11... Ne5 {[%clk 0:03:03.3]} 12. O-O-O {[%clk 0:02:57.5]} 12...
Nbc4 {[%clk 0:03:02]} 13. Bxc4 {[%clk 0:02:58]} 13... Nxc4 {[%clk 0:03:02.6]}
14. Qd3 {[%clk 0:02:59.1]} 14... Nxe3 {[%clk 0:02:58.7]} 15. Qxe3 {[%clk
0:02:59.3]} 15... Qb6 {[%clk 0:02:59.5]} 16. h4 {[%clk 0:01:59.8]} 16... Bb7
{[%clk 0:02:50.1]} 17. h5 {[%clk 0:01:51.4]} 17... O-O-O {[%clk 0:02:40.3]} 18.
Qd3 {[%clk 0:01:14.4]} 18... Be7 {[%clk 0:02:22.9]} 19. g6 {[%clk 0:01:12.9]}
19... Bg5+ {[%clk 0:02:18.8]} 20. Kb1 {[%clk 0:01:12.6]} 20... e5 {[%clk
0:02:15.5]} 21. Nf5 {[%clk 0:01:06.2]} 21... hxg6 {[%clk 0:02:02.7]} 22. Nxd6+
{[%clk 0:01:04.9]} 22... Rxd6 {[%clk 0:02:01.8]} 23. Qxd6 {[%clk 0:01:04.7]}
23... Qxd6 {[%clk 0:02:02.7]} 24. Rxd6 {[%clk 0:01:05.7]} 24... gxh5 {[%clk
0:02:03.6]} 25. Nd5 {[%clk 0:01:01.9]} 25... h4 {[%clk 0:02:00.5]} 26. c4 {[%clk
0:00:58.6]} 26... bxc4 {[%clk 0:01:55.8]} 27. Nb6+ {[%clk 0:00:52.4]} 27... Kc7
{[%clk 0:01:54.6]} 28. Nxc4 {[%clk 0:00:53.3]} 28... h3 {[%clk 0:01:51.4]} 29.
Rdd1 {[%clk 0:00:44.1]} 29... Bf4 {[%clk 0:01:41.3]} 30. Na5 {[%clk 0:00:39.5]}
30... h2 {[%clk 0:01:30.1]} 31. Nxb7 {[%clk 0:00:39.2]} 31... Kxb7 {[%clk
0:01:31.2]} 32. Rd7+ {[%clk 0:00:39.9]} 32... Kc6 {[%clk 0:01:32.4]} 33. Rxf7
{[%clk 0:00:40.9]} 33... g5 {[%clk 0:01:25.2]} 34. Kc2 {[%clk 0:00:38.2]} 34...
Rh3 {[%clk 0:01:25.3]} 35. Kc3 {[%clk 0:00:26.4]} 35... Rxf3+ {[%clk 0:01:25.9]}
36. Kc4 {[%clk 0:00:27.7]} 36... g4 {[%clk 0:01:26.3]} 37. Rd1 {[%clk
0:00:21.6]} 37... Bg5 {[%clk 0:01:15.1]} 38. Rxf3 {[%clk 0:00:04.7]} 38... gxf3
{[%clk 0:01:15.5]} 39. Rh1 {[%clk 0:00:04.8]} 39... Bf4 {[%clk 0:01:08.8]} 40.
Kd3 {[%clk 0:00:04.3]} 40... Kc5 {[%clk 0:01:08.5]} 41. b3 {[%clk 0:00:05]}
41... a5 {[%clk 0:01:05.8]} 42. Kc3 {[%clk 0:00:04.6]} 42... Kb5 {[%clk
0:01:02.1]} 43. Kd3 {[%clk 0:00:04.5]} 43... a4 {[%clk 0:00:54.8]} 44. b4 {[%clk
0:00:05]} 44... Kb6 {[%clk 0:00:50.8]} 45. Kc4 {[%clk 0:00:05.6]} 45... Kc6
{[%clk 0:00:51.5]} 46. Kd3 {[%clk 0:00:05.6]} 46... Kb5 {[%clk 0:00:51.2]} 47.
Kc3 {[%clk 0:00:06.4]} 47... Bg3 {[%clk 0:00:45.8]} 48. Kd2 {[%clk 0:00:05]}
48... Bf4+ {[%clk 0:00:41.9]} 49. Ke1 {[%clk 0:00:05.3]} 49... Bg3+ {[%clk
0:00:36.6]} 50. Kd2 {[%clk 0:00:06]} 50... Bf4+ {[%clk 0:00:36.9]} 51. Ke1
{[%clk 0:00:06.8]} 51... Bg3+ {[%clk 0:00:29.3]} 52. Kd2 {[%clk 0:00:07.6]}
1/2-1/2

[Event "*** Titled Tuesday Blitz"]
[Site "Chess.com"]
[Date "2019.06.04"]
[Round "5"]
[White "ozates"]
[Black "AsaHoffmann"]
[Result "1-0"]
[WhiteElo "2229"]
[BlackElo "2172"]
[TimeControl "180+2"]
[EndTime "14:07:42 PDT"]
[Termination "ozates won by resignation"]

1. e4 {[%clk 0:03:01.9]} 1... d6 {[%clk 0:02:57.6]} 2. d4 {[%clk 0:02:55.2]}
2... Nf6 {[%clk 0:02:55.2]} 3. Nc3 {[%clk 0:02:56.1]} 3... c6 {[%clk 0:02:53.9]}
4. f4 {[%clk 0:02:55.9]} 4... Qa5 {[%clk 0:02:52.2]} 5. e5 {[%clk 0:02:54.5]}
5... Nd5 {[%clk 0:02:50.1]} 6. Bd2 {[%clk 0:02:53.6]} 6... Bf5 {[%clk
0:02:40.6]} 7. Nf3 {[%clk 0:02:52.2]} 7... e6 {[%clk 0:02:38.2]} 8. Nxd5 {[%clk
0:02:49]} 8... Qxd5 {[%clk 0:02:35.6]} 9. c4 {[%clk 0:02:49.6]} 9... Qe4+ {[%clk
0:02:34.3]} 10. Be2 {[%clk 0:02:50.9]} 10... dxe5 {[%clk 0:02:28]} 11. fxe5
{[%clk 0:02:42.1]} 11... Nd7 {[%clk 0:02:23.1]} 12. O-O {[%clk 0:02:41]} 12...
O-O-O {[%clk 0:02:19.5]} 13. Bc3 {[%clk 0:02:36.6]} 13... h6 {[%clk 0:02:15.7]}
14. Re1 {[%clk 0:02:35.9]} 14... g5 {[%clk 0:02:10.1]} 15. Bf1 {[%clk
0:02:16.4]} 15... Qc2 {[%clk 0:02:05.4]} 16. Qxc2 {[%clk 0:02:11.9]} 16... Bxc2
{[%clk 0:02:04.3]} 17. d5 {[%clk 0:02:11.2]} 17... cxd5 {[%clk 0:01:58]} 18.
cxd5 {[%clk 0:02:10.3]} 18... Bc5+ {[%clk 0:01:57]} 19. Kh1 {[%clk 0:02:11.1]}
19... Bf5 {[%clk 0:01:47.9]} 20. d6 {[%clk 0:01:57.9]} 20... Kb8 {[%clk
0:01:46.6]} 21. Nd4 {[%clk 0:01:47.6]} 21... Bg6 {[%clk 0:01:42.8]} 22. b4
{[%clk 0:01:48.1]} 22... Bxd4 {[%clk 0:01:38.6]} 23. Bxd4 {[%clk 0:01:48.7]}
23... Rc8 {[%clk 0:01:38]} 24. Rec1 {[%clk 0:01:47.5]} 24... a6 {[%clk
0:01:36.6]} 25. a4 {[%clk 0:01:46.3]} 25... Rxc1 {[%clk 0:01:31]} 26. Rxc1
{[%clk 0:01:43.2]} 26... Be4 {[%clk 0:01:23.8]} 27. Rc7 {[%clk 0:01:41]} 27...
Rd8 {[%clk 0:01:13.4]} 28. b5 {[%clk 0:01:36.5]} 28... axb5 {[%clk 0:01:11.4]}
29. Bxb5 {[%clk 0:01:35.7]} 29... Bc6 {[%clk 0:01:00.4]} 30. Bxc6 {[%clk
0:01:34.4]} 30... bxc6 {[%clk 0:00:59.3]} 31. a5 {[%clk 0:01:33.8]} 31... c5
{[%clk 0:00:55.6]} 32. Bc3 {[%clk 0:01:27]} 32... f6 {[%clk 0:00:53.6]} 33. exf6
{[%clk 0:01:22.9]} 33... Nxf6 {[%clk 0:00:52.9]} 34. Be5 {[%clk 0:00:35.1]}
34... Nd7 {[%clk 0:00:47.3]} 35. Bc3 {[%clk 0:00:30.5]} 35... e5 {[%clk
0:00:46.4]} 36. Kg1 {[%clk 0:00:31]} 36... e4 {[%clk 0:00:45.8]} 37. Kf2 {[%clk
0:00:31.3]} 37... Ka8 {[%clk 0:00:39.9]} 38. Ke3 {[%clk 0:00:31.4]} 38... Nb8
{[%clk 0:00:38]} 39. Be5 {[%clk 0:00:28.4]} 39... Na6 {[%clk 0:00:27.8]} 40. Rc6
{[%clk 0:00:24.7]} 40... Kb7 {[%clk 0:00:27]} 41. Rb6+ {[%clk 0:00:25.2]} 41...
Ka7 {[%clk 0:00:26.7]} 42. Kxe4 {[%clk 0:00:26.6]} 42... Rd7 {[%clk 0:00:23.4]}
43. Kd5 {[%clk 0:00:26.9]} 43... c4 {[%clk 0:00:14.8]} 44. Kc6 {[%clk
0:00:26.3]} 44... c3 {[%clk 0:00:09.3]} 45. Kxd7 {[%clk 0:00:23.5]} 45... c2
{[%clk 0:00:09.2]} 46. Bb2 {[%clk 0:00:23.3]} 46... Nc5+ {[%clk 0:00:06.9]} 47.
Ke8 {[%clk 0:00:22.8]} 1-0

[Event "*** Titled Tuesday Blitz"]
[Site "Chess.com"]
[Date "2019.06.04"]
[Round "5"]
[White "fastestmindalive"]
[Black "Gentlejimmy7"]
[Result "0-1"]
[WhiteElo "2792"]
[BlackElo "2543"]
[TimeControl "180+2"]
[EndTime "14:07:49 PDT"]
[Termination "Gentlejimmy7 won by resignation"]

1. e4 {[%clk 0:03:01.9]} 1... c5 {[%clk 0:03:00.5]} 2. Nf3 {[%clk 0:03:03.2]}
2... e6 {[%clk 0:03:00.5]} 3. d4 {[%clk 0:03:04.4]} 3... cxd4 {[%clk 0:03:01.8]}
4. Nxd4 {[%clk 0:03:04.3]} 4... Nf6 {[%clk 0:03:03.4]} 5. Nc3 {[%clk 0:03:02.9]}
5... Nc6 {[%clk 0:03:04.2]} 6. Nxc6 {[%clk 0:03:01.7]} 6... bxc6 {[%clk
0:03:04.6]} 7. Bd3 {[%clk 0:03:03.3]} 7... d5 {[%clk 0:03:02.6]} 8. O-O {[%clk
0:03:04.8]} 8... Be7 {[%clk 0:02:42.8]} 9. e5 {[%clk 0:03:03.3]} 9... Nd7 {[%clk
0:02:38.2]} 10. Qh5 {[%clk 0:03:04.3]} 10... g6 {[%clk 0:02:28.4]} 11. Qe2
{[%clk 0:03:05.4]} 11... Qc7 {[%clk 0:02:21.5]} 12. f4 {[%clk 0:03:04.6]} 12...
O-O {[%clk 0:02:19.4]} 13. Rf3 {[%clk 0:02:49.3]} 13... c5 {[%clk 0:02:11.6]}
14. b3 {[%clk 0:02:19.7]} 14... a6 {[%clk 0:01:55.1]} 15. Rh3 {[%clk 0:02:18.9]}
15... Bb7 {[%clk 0:01:46.8]} 16. Bd2 {[%clk 0:02:19]} 16... Qb6 {[%clk 0:01:02]}
17. Kh1 {[%clk 0:02:18.2]} 17... Qc6 {[%clk 0:01:00.4]} 18. Rf1 {[%clk
0:02:12.8]} 18... f5 {[%clk 0:01:01.2]} 19. exf6 {[%clk 0:02:10.8]} 19... Bxf6
{[%clk 0:01:00.2]} 20. Rxh7 {[%clk 0:01:59.2]} 20... Bxc3 {[%clk 0:00:54.4]} 21.
Bxc3 {[%clk 0:01:34.8]} 21... d4 {[%clk 0:00:52.3]} 22. Bd2 {[%clk 0:01:34.1]}
22... Qxg2+ {[%clk 0:00:48.2]} 23. Qxg2 {[%clk 0:01:32.8]} 23... Bxg2+ {[%clk
0:00:50.1]} 24. Kxg2 {[%clk 0:01:33.6]} 24... Kxh7 {[%clk 0:00:51.8]} 25. h4
{[%clk 0:01:17.5]} 25... Rf6 {[%clk 0:00:51.9]} 26. h5 {[%clk 0:01:17.9]} 26...
Nf8 {[%clk 0:00:52.2]} 27. Re1 {[%clk 0:01:17.6]} 27... Kg7 {[%clk 0:00:53]} 28.
Re5 {[%clk 0:01:19.2]} 28... Rc8 {[%clk 0:00:50.8]} 29. Bxa6 {[%clk 0:01:15.4]}
29... Ra8 {[%clk 0:00:51.8]} 30. Bd3 {[%clk 0:01:15.6]} 30... Rxa2 {[%clk
0:00:48.1]} 31. Rxc5 {[%clk 0:01:16.8]} 31... gxh5 {[%clk 0:00:48.6]} 32. Rxh5
{[%clk 0:01:14.8]} 32... Ng6 {[%clk 0:00:49.2]} 33. Kg3 {[%clk 0:01:11.9]} 33...
Ra1 {[%clk 0:00:48.9]} 34. f5 {[%clk 0:00:32.5]} 34... exf5 {[%clk 0:00:43.1]}
35. Bh6+ {[%clk 0:00:33.9]} 35... Kf7 {[%clk 0:00:42.5]} 36. Bc4+ {[%clk
0:00:35.1]} 36... Ke8 {[%clk 0:00:43.9]} 37. Bg5 {[%clk 0:00:33.5]} 37... Rd6
{[%clk 0:00:36.8]} 38. Kf2 {[%clk 0:00:34.6]} 38... Ra2 {[%clk 0:00:36.7]} 39.
Bd3 {[%clk 0:00:28.1]} 39... Ne5 {[%clk 0:00:37.8]} 40. Bxf5 {[%clk 0:00:19.5]}
40... d3 {[%clk 0:00:36.3]} 41. Rh8+ {[%clk 0:00:20.4]} 41... Kf7 {[%clk
0:00:35.2]} 42. Rh7+ {[%clk 0:00:21.4]} 42... Kg8 {[%clk 0:00:35.5]} 43. Rc7
{[%clk 0:00:16.4]} 43... Rxc2+ {[%clk 0:00:31.4]} 44. Rxc2 {[%clk 0:00:16.4]}
44... dxc2 {[%clk 0:00:33.3]} 45. Bxc2 {[%clk 0:00:18.1]} 45... Rc6 {[%clk
0:00:26.3]} 46. Be4 {[%clk 0:00:17.3]} 46... Rc3 {[%clk 0:00:24.3]} 47. Ke2
{[%clk 0:00:18.4]} 47... Kf7 {[%clk 0:00:19.5]} 48. Bd2 {[%clk 0:00:16.5]} 48...
Rh3 {[%clk 0:00:20]} 49. Bd5+ {[%clk 0:00:16.8]} 49... Kf6 {[%clk 0:00:20.8]}
50. Ba5 {[%clk 0:00:14.2]} 50... Kf5 {[%clk 0:00:21.6]} 51. Kd2 {[%clk
0:00:15.1]} 51... Rd3+ {[%clk 0:00:20]} 52. Kc2 {[%clk 0:00:16.3]} 52... Rxd5
{[%clk 0:00:21.9]} 53. Bc3 {[%clk 0:00:17.6]} 53... Ke6 {[%clk 0:00:23.1]} 54.
Kb2 {[%clk 0:00:18.6]} 54... Kd6 {[%clk 0:00:24.2]} 55. Bb4+ {[%clk 0:00:19.4]}
55... Kc6 {[%clk 0:00:25.4]} 56. Bc3 {[%clk 0:00:20.8]} 56... Nd3+ {[%clk
0:00:26.7]} 0-1

[Event "*** Titled Tuesday Blitz"]
[Site "Chess.com"]
[Date "2019.06.04"]
[Round "5"]
[White "Antipov_Mikhail_Al"]
[Black "nrvisakh"]
[Result "1-0"]
[WhiteElo "2884"]
[BlackElo "2748"]
[TimeControl "180+2"]
[EndTime "14:07:50 PDT"]
[Termination "Antipov_Mikhail_Al won on time"]

1. e4 {[%clk 0:03:01.9]} 1... c5 {[%clk 0:03:01]} 2. Nf3 {[%clk 0:03:03]} 2...
d6 {[%clk 0:03:02.3]} 3. d4 {[%clk 0:03:04.1]} 3... cxd4 {[%clk 0:03:03.6]} 4.
Nxd4 {[%clk 0:03:06]} 4... Nf6 {[%clk 0:03:05.2]} 5. Nc3 {[%clk 0:03:07.4]} 5...
a6 {[%clk 0:03:06.8]} 6. f3 {[%clk 0:03:07.9]} 6... e5 {[%clk 0:03:07.5]} 7. Nb3
{[%clk 0:03:09.2]} 7... Be6 {[%clk 0:03:08.9]} 8. Be3 {[%clk 0:03:09.3]} 8...
Be7 {[%clk 0:03:10.3]} 9. Qd2 {[%clk 0:03:10.5]} 9... O-O {[%clk 0:03:11.3]} 10.
O-O-O {[%clk 0:03:11]} 10... a5 {[%clk 0:03:12.9]} 11. Kb1 {[%clk 0:03:11.7]}
11... a4 {[%clk 0:03:13.1]} 12. Nc1 {[%clk 0:03:13.1]} 12... a3 {[%clk
0:03:14.8]} 13. b3 {[%clk 0:03:14]} 13... Ra5 {[%clk 0:03:16.3]} 14. g4 {[%clk
0:03:08.9]} 14... d5 {[%clk 0:03:16.6]} 15. g5 {[%clk 0:02:54.5]} 15... d4
{[%clk 0:03:17.6]} 16. gxf6 {[%clk 0:02:54.7]} 16... Bxf6 {[%clk 0:03:19.5]} 17.
Qe1 {[%clk 0:02:41.2]} 17... Nd7 {[%clk 0:03:06.2]} 18. Nd5 {[%clk 0:02:33.8]}
18... Bxd5 {[%clk 0:02:13.4]} 19. Bd2 {[%clk 0:02:33.2]} 19... Ra8 {[%clk
0:01:34.2]} 20. exd5 {[%clk 0:02:33.8]} 20... Nb6 {[%clk 0:01:35.5]} 21. Ba5
{[%clk 0:02:12.4]} 21... Rxa5 {[%clk 0:01:09]} 22. Qxa5 {[%clk 0:02:12.7]} 22...
Nxd5 {[%clk 0:01:10.4]} 23. Qxd8 {[%clk 0:02:12.4]} 23... Nc3+ {[%clk 0:01:12]}
24. Ka1 {[%clk 0:02:14.1]} 24... Rxd8 {[%clk 0:01:13.6]} 25. Rd3 {[%clk
0:02:12.3]} 25... e4 {[%clk 0:01:14.1]} 26. fxe4 {[%clk 0:02:11.8]} 26... Nxe4
{[%clk 0:01:16]} 27. Bg2 {[%clk 0:02:01.6]} 27... Nc5 {[%clk 0:01:17.1]} 28. Re1
{[%clk 0:01:59.7]} 28... Nxd3 {[%clk 0:01:17.4]} 29. Nxd3 {[%clk 0:02:01.6]}
29... b6 {[%clk 0:01:18]} 30. Kb1 {[%clk 0:01:57.7]} 30... Bg5 {[%clk
0:01:16.3]} 31. Re5 {[%clk 0:01:52.7]} 31... Bf6 {[%clk 0:01:14.2]} 32. Rb5
{[%clk 0:01:43.5]} 32... Re8 {[%clk 0:01:15]} 33. Rxb6 {[%clk 0:01:41.3]} 33...
h5 {[%clk 0:01:15.9]} 34. Kc1 {[%clk 0:01:35.4]} 34... Re2 {[%clk 0:01:13.5]}
35. Rxf6 {[%clk 0:00:45.4]} 35... gxf6 {[%clk 0:01:11.7]} 36. Bd5 {[%clk
0:00:46.7]} 36... Kf8 {[%clk 0:00:38.5]} 37. b4 {[%clk 0:00:45]} 37... Ke7
{[%clk 0:00:39.7]} 38. h4 {[%clk 0:00:42]} 38... Kd6 {[%clk 0:00:38.7]} 39. Bxf7
{[%clk 0:00:30]} 39... Rh2 {[%clk 0:00:35.9]} 40. Bxh5 {[%clk 0:00:30.1]} 40...
Rxh4 {[%clk 0:00:32.2]} 41. Bf3 {[%clk 0:00:31.3]} 41... Rh3 {[%clk 0:00:31.1]}
42. Ba8 {[%clk 0:00:28.3]} 42... Rg3 {[%clk 0:00:31]} 43. Kd2 {[%clk 0:00:29.2]}
43... Rg1 {[%clk 0:00:31]} 44. Nc1 {[%clk 0:00:23.2]} 44... f5 {[%clk
0:00:28.8]} 45. Nb3 {[%clk 0:00:23.6]} 45... Ke5 {[%clk 0:00:25.5]} 46. b5
{[%clk 0:00:23]} 46... Rg6 {[%clk 0:00:12.4]} 47. Na5 {[%clk 0:00:22]} 47... Kd6
{[%clk 0:00:05.7]} 48. b6 {[%clk 0:00:21.6]} 48... Rg8 {[%clk 0:00:03.1]} 49.
Bf3 {[%clk 0:00:19.6]} 1-0

[Event "*** Titled Tuesday Blitz"]
[Site "Chess.com"]
[Date "2019.06.04"]
[Round "5"]
[White "Alexander_Donchenko"]
[Black "LazovT"]
[Result "1-0"]
[WhiteElo "2753"]
[BlackElo "2587"]
[TimeControl "180+2"]
[EndTime "14:07:52 PDT"]
[Termination "Alexander_Donchenko won by resignation"]

1. e4 {[%clk 0:03:01.9]} 1... c5 {[%clk 0:03:00.4]} 2. Nf3 {[%clk 0:03:02.7]}
2... d6 {[%clk 0:03:01.4]} 3. Bb5+ {[%clk 0:03:03.4]} 3... Nd7 {[%clk
0:03:01.7]} 4. d4 {[%clk 0:03:04.1]} 4... cxd4 {[%clk 0:03:02.5]} 5. Qxd4 {[%clk
0:03:06]} 5... a6 {[%clk 0:03:03.8]} 6. Bxd7+ {[%clk 0:03:07.1]} 6... Bxd7
{[%clk 0:03:05.7]} 7. Nc3 {[%clk 0:03:08.6]} 7... Rc8 {[%clk 0:03:05.9]} 8. O-O
{[%clk 0:03:08.1]} 8... e5 {[%clk 0:03:05.1]} 9. Qd3 {[%clk 0:03:08.7]} 9... h6
{[%clk 0:03:06.2]} 10. Nd2 {[%clk 0:03:08.4]} 10... Be6 {[%clk 0:03:05.7]} 11.
Rd1 {[%clk 0:03:09]} 11... Nf6 {[%clk 0:03:06.6]} 12. Nf1 {[%clk 0:03:08.1]}
12... Be7 {[%clk 0:03:08.2]} 13. Ne3 {[%clk 0:03:09]} 13... O-O {[%clk
0:03:08.7]} 14. a4 {[%clk 0:03:10.2]} 14... Qc7 {[%clk 0:03:09.4]} 15. a5 {[%clk
0:03:06.5]} 15... Qc5 {[%clk 0:03:08.5]} 16. Qe2 {[%clk 0:03:03]} 16... Bd8
{[%clk 0:03:04.1]} 17. Bd2 {[%clk 0:03:01.9]} 17... Bxa5 {[%clk 0:02:59.7]} 18.
Ncd5 {[%clk 0:02:29]} 18... Bd8 {[%clk 0:02:55.9]} 19. Bb4 {[%clk 0:02:23.1]}
19... Qc6 {[%clk 0:02:48.1]} 20. Bxd6 {[%clk 0:02:09.8]} 20... Re8 {[%clk
0:02:26]} 21. Nxf6+ {[%clk 0:02:03.8]} 21... Bxf6 {[%clk 0:02:27.9]} 22. Qf3
{[%clk 0:01:33.7]} 22... Qb5 {[%clk 0:02:10.8]} 23. Ba3 {[%clk 0:01:29.2]} 23...
Bg5 {[%clk 0:02:08.2]} 24. Rd2 {[%clk 0:01:15.5]} 24... Red8 {[%clk 0:01:52.5]}
25. Rad1 {[%clk 0:01:15.5]} 25... Rxd2 {[%clk 0:01:52.4]} 26. Rxd2 {[%clk
0:01:17.4]} 26... Qa4 {[%clk 0:01:49.9]} 27. c3 {[%clk 0:01:07.5]} 27... Rd8
{[%clk 0:01:38.7]} 28. Rxd8+ {[%clk 0:01:05]} 28... Bxd8 {[%clk 0:01:40.6]} 29.
g3 {[%clk 0:00:52]} 29... Bb6 {[%clk 0:01:36.9]} 30. Nd5 {[%clk 0:00:48.9]}
30... Bd8 {[%clk 0:00:56.4]} 31. h4 {[%clk 0:00:49.4]} 31... Qd7 {[%clk
0:00:53]} 32. Ne3 {[%clk 0:00:39.4]} 32... b5 {[%clk 0:00:52.7]} 33. Kh2 {[%clk
0:00:34]} 33... a5 {[%clk 0:00:53.7]} 34. Nf5 {[%clk 0:00:31.7]} 34... Bb6
{[%clk 0:00:15.8]} 35. Ne7+ {[%clk 0:00:32.7]} 35... Kh7 {[%clk 0:00:15.1]} 36.
Nd5 {[%clk 0:00:34.3]} 36... Bd8 {[%clk 0:00:14.4]} 37. Bc5 {[%clk 0:00:33.7]}
37... f5 {[%clk 0:00:15.1]} 38. Ne3 {[%clk 0:00:32]} 38... g6 {[%clk 0:00:13.9]}
39. h5 {[%clk 0:00:31]} 39... Bg5 {[%clk 0:00:10.8]} 40. hxg6+ {[%clk
0:00:29.1]} 40... Kxg6 {[%clk 0:00:12.7]} 41. exf5+ {[%clk 0:00:28.2]} 41...
Bxf5 {[%clk 0:00:14.6]} 42. Nxf5 {[%clk 0:00:28.9]} 42... Qxf5 {[%clk
0:00:16.5]} 43. Qc6+ {[%clk 0:00:30.1]} 43... Kh5 {[%clk 0:00:12.9]} 44. Qxb5
{[%clk 0:00:30.8]} 44... e4 {[%clk 0:00:13.6]} 45. Qe2+ {[%clk 0:00:29.5]} 45...
Kg6 {[%clk 0:00:10.4]} 46. Bd4 {[%clk 0:00:29.7]} 46... Qf3 {[%clk 0:00:08.3]}
47. Qa6+ {[%clk 0:00:26.2]} 47... Kh5 {[%clk 0:00:08.9]} 48. Qe6 {[%clk
0:00:25]} 48... e3 {[%clk 0:00:08.5]} 49. Bxe3 {[%clk 0:00:20.3]} 49... Bxe3
{[%clk 0:00:04]} 50. Qxe3 {[%clk 0:00:21.1]} 50... Kg4 {[%clk 0:00:02.6]} 51.
Qxf3+ {[%clk 0:00:20.9]} 51... Kxf3 {[%clk 0:00:04.5]} 52. Kg1 {[%clk
0:00:21.2]} 52... h5 {[%clk 0:00:04.6]} 53. Kf1 {[%clk 0:00:22.1]} 53... a4
{[%clk 0:00:06.1]} 54. Ke1 {[%clk 0:00:20.9]} 1-0

[Event "*** Titled Tuesday Blitz"]
[Site "Chess.com"]
[Date "2019.06.04"]
[Round "5"]
[White "ethylalcohol"]
[Black "aquaticpineapples"]
[Result "0-1"]
[WhiteElo "2032"]
[BlackElo "2151"]
[TimeControl "180+2"]
[EndTime "14:07:57 PDT"]
[Termination "aquaticpineapples won on time"]

1. d4 {[%clk 0:03:01.9]} 1... d5 {[%clk 0:02:33.6]} 2. Nf3 {[%clk 0:03:02.4]}
2... c5 {[%clk 0:02:33.4]} 3. c3 {[%clk 0:03:00.2]} 3... Nc6 {[%clk 0:02:33.8]}
4. Bf4 {[%clk 0:03:00]} 4... Nf6 {[%clk 0:02:33.2]} 5. e3 {[%clk 0:03:00.2]}
5... Bf5 {[%clk 0:02:29.6]} 6. Nbd2 {[%clk 0:02:54.2]} 6... e6 {[%clk
0:02:27.5]} 7. Be2 {[%clk 0:02:47.3]} 7... Be7 {[%clk 0:02:23.8]} 8. O-O {[%clk
0:02:47.4]} 8... h6 {[%clk 0:02:22.9]} 9. Ne5 {[%clk 0:02:39.8]} 9... Nxe5
{[%clk 0:02:21.2]} 10. Bxe5 {[%clk 0:02:38.9]} 10... O-O {[%clk 0:02:18.4]} 11.
Nf3 {[%clk 0:02:32.5]} 11... Ne4 {[%clk 0:02:15.2]} 12. Qb3 {[%clk 0:02:10.1]}
12... b6 {[%clk 0:02:04.1]} 13. a4 {[%clk 0:02:10.4]} 13... Bg4 {[%clk
0:01:59.1]} 14. Rfd1 {[%clk 0:02:05.4]} 14... c4 {[%clk 0:01:55.2]} 15. Qc2
{[%clk 0:01:58.7]} 15... Bf5 {[%clk 0:01:52.7]} 16. Qc1 {[%clk 0:01:57]} 16...
Rc8 {[%clk 0:01:49.1]} 17. h3 {[%clk 0:01:53.7]} 17... Qd7 {[%clk 0:01:44.7]}
18. Bh2 {[%clk 0:01:38.5]} 18... f6 {[%clk 0:01:42]} 19. Nh4 {[%clk 0:01:32.6]}
19... Bh7 {[%clk 0:01:38.8]} 20. Bh5 {[%clk 0:01:31.7]} 20... g5 {[%clk
0:01:18]} 21. Ng6 {[%clk 0:01:24.9]} 21... Rfd8 {[%clk 0:01:17.8]} 22. f3 {[%clk
0:01:16.6]} 22... Nd6 {[%clk 0:01:11.8]} 23. Nxe7+ {[%clk 0:01:05.5]} 23... Qxe7
{[%clk 0:01:12.5]} 24. Re1 {[%clk 0:01:00]} 24... Kg7 {[%clk 0:01:09.4]} 25. Qd2
{[%clk 0:00:53.6]} 25... Bd3 {[%clk 0:01:00.4]} 26. h4 {[%clk 0:00:50.4]} 26...
Nf7 {[%clk 0:00:45.6]} 27. hxg5 {[%clk 0:00:46.7]} 27... hxg5 {[%clk 0:00:44.4]}
28. e4 {[%clk 0:00:46]} 28... Rh8 {[%clk 0:00:34]} 29. g4 {[%clk 0:00:32.3]}
29... Qd7 {[%clk 0:00:25.4]} 30. e5 {[%clk 0:00:25.8]} 30... f5 {[%clk
0:00:25.2]} 31. Bxf7 {[%clk 0:00:25.5]} 31... Kxf7 {[%clk 0:00:24.8]} 32. Qxg5
{[%clk 0:00:26.3]} 32... Rcg8 {[%clk 0:00:23.2]} 33. Qf6+ {[%clk 0:00:23.4]}
33... Ke8 {[%clk 0:00:24.3]} 34. g5 {[%clk 0:00:19.8]} 34... Rh5 {[%clk
0:00:17.8]} 35. Kg2 {[%clk 0:00:16.7]} 35... Rgxg5+ {[%clk 0:00:13.2]} 36. Bg3
{[%clk 0:00:12.9]} 36... f4 {[%clk 0:00:09.3]} 37. Qxf4 {[%clk 0:00:11.7]} 37...
Qg7 {[%clk 0:00:08.4]} 38. Rh1 {[%clk 0:00:09.3]} 38... Rxg3+ {[%clk 0:00:09.3]}
39. Qxg3 {[%clk 0:00:09.6]} 39... Rg5 {[%clk 0:00:10.4]} 40. Rh8+ {[%clk
0:00:08.6]} 40... Kd7 {[%clk 0:00:09.7]} 41. Rh3 {[%clk 0:00:06.8]} 41... Rxg3+
{[%clk 0:00:10.3]} 42. Rxg3 {[%clk 0:00:07.8]} 42... Qh6 {[%clk 0:00:10.6]} 43.
Rg1 {[%clk 0:00:07.6]} 43... Qd2+ {[%clk 0:00:11.6]} 44. Kh1 {[%clk 0:00:06.8]}
44... Qxb2 {[%clk 0:00:11.9]} 45. Rg7+ {[%clk 0:00:07.2]} 45... Kc6 {[%clk
0:00:12.6]} 46. Re7 {[%clk 0:00:04.1]} 46... Qxc3 {[%clk 0:00:12.8]} 47. Rxe6+
{[%clk 0:00:04.7]} 47... Kd7 {[%clk 0:00:14.1]} 48. Rd6+ {[%clk 0:00:04.8]}
48... Ke7 {[%clk 0:00:14.8]} 49. Rg7+ {[%clk 0:00:05.3]} 49... Kf8 {[%clk
0:00:16]} 50. Rxa7 {[%clk 0:00:03.6]} 50... Qe1+ {[%clk 0:00:17]} 51. Kg2 {[%clk
0:00:02.3]} 51... Qe2+ {[%clk 0:00:17.3]} 52. Kg3 {[%clk 0:00:02.8]} 52... Qe1+
{[%clk 0:00:18.3]} 53. Kg2 {[%clk 0:00:03.3]} 53... Qh4 {[%clk 0:00:18.8]} 0-1